Cogmind - Beta 13 @@@ ROGUE MODE // 2024.04.26 @ 08:07:59 Player: tikka Result: Destroyed by as-69835 with Assembled F-torch Performance ------------- Evolutions (0) 0 Regions Visited (4) 800 Robots Destroyed (15) 75 Value Destroyed (380) 380 Prototype IDs (0) 0 Alien Tech Used (0) 0 Bonus (0) 0 TOTAL SCORE: 1255 Bonus ------- None Cogmind --------- Core Integrity 0/250 Matter 400/400 Energy 100/100 System Corruption 1% Temperature Cool (70) Movement Core (250) Ox4 Location -9/Mines Parts ------- > --- POWER (1) -------- (None) > --- PROPULSION (2) --- (None) > --- UTILITY (2) ------ Medium Storage Unit Medium Matter Pod > --- WEAPON (2) ------- Light Assault Rifle > --- INVENTORY (10) --- (None) Peak State ------------ > --- POWER ------------ Light Nuclear Core > --- PROPULSION ------- Aluminum Leg Wheel > --- UTILITY ---------- Small Storage Unit Medium Matter Pod > --- WEAPON ----------- Light Assault Rifle Light Cannon > --- INVENTORY -------- Grenade Launcher Grenade Launcher [Rating: 9] Favorites ----------- Power Ion Engine Engine Ion Engine Power Core Light Nuclear Core Propulsion Aluminum Leg Leg Aluminum Leg Wheel Wheel Utility Medium Matter Pod Storage Medium Matter Pod Weapon Light Assault Rifle Energy Gun Small Laser Ballistic Gun Light Assault Rifle Ballistic Cannon Light Cannon Launcher Grenade Launcher Build | -11 -10 -10 -10 -9 ------- Run | Yrd Mat Min Exi Min Slots Evolved . | . . . . . Power . | . . . . . Propulsion . | . . . . . Utility . | . . . . . Weapon . | . . . . . Parts Attached 26 | 6 12 5 3 . Power 4 | 1 2 1 . . Engine 3 | 1 1 1 . . Core 1 | . 1 . . . Reactor . | . . . . . Propulsion 7 | 2 4 1 . . Treads . | . . . . . Leg 5 | . 4 1 . . Wheel 2 | 2 . . . . Hover . | . . . . . Flight . | . . . . . Utility 5 | 1 1 . 3 . Device . | . . . . . Storage 5 | 1 1 . 3 . Processor . | . . . . . Hackware . | . . . . . Protection . | . . . . . Artifact . | . . . . . Weapon 10 | 2 5 3 . . Energy Gun 1 | 1 . . . . Energy Cannon . | . . . . . Ballistic Gun 5 | 1 1 3 . . Ballistic Cannon 2 | . 2 . . . Launcher 2 | . 2 . . . Special Weapon . | . . . . . Impact Weapon . | . . . . . Slashing Weapon . | . . . . . Piercing Weapon . | . . . . . Special Melee Weapon . | . . . . . Unidentified Prototypes . | . . . . . Parts Lost 7 | . 3 . . 4 Power 3 | . 2 . . 1 Propulsion 3 | . 1 . . 2 Utility . | . . . . . Weapon 1 | . . . . 1 Highest Loss Streak 4 | . 1 . . 4 To Critical Strikes . | . . . . . Average Slot Usage (%) 96 | . 94 92 100 85 Engine 10 | . 8 7 14 . Leg 24 | . 12 28 28 28 Wheel 3 | . 14 . . . Storage 27 | . 27 28 28 28 Ballistic Gun 21 | . 13 19 28 28 Ballistic Cannon 5 | . 10 9 . . Naked Turns . | . . . . . Heaviest Build 19 | 10 16 16 19 19 Greatest Support 26 | 26 26 20 20 20 Greatest Overweight (x) 1 | . 1 . . . Average Overweight (x) . | . . . . . Largest Inventory Capacity 10 | 8 8 8 10 10 Average Capacity 8 | 5 8 8 8 10 Most Carried 4 | 3 4 2 1 . Average Carried . | 1 1 . . . Final Capacity 10 | 8 8 8 10 10 Final Carried . | . . . . . Class Distribution -------------------- 55% | Scavenger-Mutant 44% | Mutant Dominant Class ---------------- Mutant | -10/Materials Mutant | -10/Mines Scavenger-Mutant | -10/Exiles Scavenger-Mutant | -9/Mines Resources | -11 -10 -10 -10 -9 ----------- Run | Yrd Mat Min Exi Min Matter Collected 759 | 235 261 144 119 . Remotely . | . . . . . Salvage Created 395 | . 286 109 . . Parts 26 | . 19 7 . . Haulers Intercepted . | . . . . . Recyclers Shooed . | . . . . . Parts Field Recycled . | . . . . . Retrieved Matter . | . . . . . Parts Self-Destructed . | . . . . . Prevented . | . . . . . Kills | -11 -10 -10 -10 -9 ------- Run | Yrd Mat Min Exi Min Combat Hostiles Destroyed 13 | . 9 4 . . Guns 4 | . 3 1 . . Cannons 9 | . 6 3 . . Classes Destroyed 3 | . 3 . . . Watcher 2 | . 2 . . . Swarmer 5 | . 3 2 . . Grunt 8 | . 6 2 . . Best Kill Streak 6 | . 6 2 . . Combat Bots Only 6 | . 6 2 . . Max Kills in Single Turn 1 | . 1 1 . . Gunslinging . | . . . . . Exploded . | . . . . . Melee . | . . . . . Uniques/NPCs Destroyed . | . . . . . Combat | -11 -10 -10 -10 -9 -------- Run | Yrd Mat Min Exi Min Hostile Shots Fired 110 | . 40 23 . 47 Missed 39 | . 13 7 . 19 Damage Taken 957 | . 353 133 . 471 Core 251 | . 60 27 . 164 Absorbed by Shields . | . . . . . Core Remaining (%) 100 | 100 . . . . Volleys Fired 46 | . 29 14 . 3 Largest 2 | . 2 2 . 2 Hottest 60 | . 60 55 . 40 Shots Fired 92 | . 58 28 . 6 Gun 48 | . 28 14 . 6 Cannon 42 | . 28 14 . . Launcher 2 | . 2 . . . Special . | . . . . . Kinetic 90 | . 56 28 . 6 Thermal . | . . . . . Explosive 2 | . 2 . . . Electromagnetic . | . . . . . Robot Hit Streak 10 | . 5 10 . 2 Robot Miss Streak 6 | . 5 6 . 3 Penetration Max . | . . . . . Secondary Targets . | . . . . . Shots Hit Robots 39 | . 26 10 . 3 Core Hits 26 | . 15 8 . 3 Critical Kills . | . . . . . Critical Parts Destroyed . | . . . . . Critical Strikes 1 | . 1 . . . Blast 1 | . 1 . . . Melee Attacks . | . . . . . Impact . | . . . . . Slashing . | . . . . . Piercing . | . . . . . Sneak Attacks . | . . . . . Combat Hostiles . | . . . . . Follow-up Attacks . | . . . . . Damage Inflicted 642 | . 464 143 . 35 Guns 188 | . 106 47 . 35 Cannons 380 | . 290 90 . . Explosions 62 | . 62 . . . Melee . | . . . . . Ramming 12 | . 6 6 . . Kinetic 568 | . 396 137 . 35 Thermal . | . . . . . Explosive 62 | . 62 . . . Electromagnetic . | . . . . . Impact . | . . . . . Slashing . | . . . . . Piercing . | . . . . . Highest Corruption 1 | . . . . 1 Average Corruption 1 | . . . . 1 Corruption Purged . | . . . . . Corruption Blocked . | . . . . . Overload Shots . | . . . . . Overflow Damage 28 | . 28 . . . Projectiles 19 | . 19 . . . Explosions 9 | . 9 . . . Melee . | . . . . . Knockbacks 3 | . 3 . . . Impact . | . . . . . Kinetic 3 | . 3 . . . Secondary . | . . . . . Self-Inflicted Damage 39 | . 39 . . . Shots 1 | . 1 . . . Rammed 1 | . 1 . . . Targets Rammed 2 | . 1 1 . . Kicked 1 | . . 1 . . Crushed . | . . . . . Highest Temperature 89 | . 89 28 . 60 Average Temperature 25 | . 31 10 . 24 Received Heat Transfer 340 | . 171 9 . 160 Siege Activations . | . . . . . Robots Corrupted . | . . . . . Combat Hostiles . | . . . . . Parts Fried . | . . . . . Impact Corruptions . | . . . . . Robots Melted . | . . . . . Combat Hostiles . | . . . . . Parts Melted . | . . . . . Heat Transferred . | . . . . . Parts Sabotaged . | . . . . . Parts Stolen . | . . . . . Parts Stripped . | . . . . . Power Chain Reactions . | . . . . . Alert | -11 -10 -10 -10 -9 ------- Run | Yrd Mat Min Exi Min Peak Influence 225 | . 225 187 . . Initial 87 | . . 87 . . Average 109 | . 95 134 . . Maximum Alert Level 1 | . 1 . . . Low Security (%) 95 | 100 90 100 . 100 Level 1 4 | . 9 . . . Level 2 . | . . . . . Level 3 . | . . . . . Level 4 . | . . . . . Level 5 . | . . . . . High Security . | . . . . . Max Security . | . . . . . Squads Dispatched 2 | . 2 . . . Investigation 1 | . 1 . . . Extermination . | . . . . . Reinforcement 1 | . 1 . . . Assault . | . . . . . Garrison . | . . . . . Intercept . | . . . . . Searches Triggered . | . . . . . Construction Impeded . | . . . . . Haulers Reinforced . | . . . . . Active Scanning Responses . | . . . . . Cargo Convoy Interrupts . | . . . . . Stealth | -11 -10 -10 -10 -9 --------- Run | Yrd Mat Min Exi Min Distress Signals 1 | . 1 . . . Communications Jammed . | . . . . . Distress Signals . | . . . . . Times Spotted 38 | . 13 5 . 20 Peak Tracking Total 20 | . 4 3 . 20 Tactical Retreats . | . . . . . Traps | -11 -10 -10 -10 -9 ------- Run | Yrd Mat Min Exi Min Traps Triggered . | . . . . . Indirectly . | . . . . . Trap Hack Attempts . | . . . . . Triggered . | . . . . . Disarmed . | . . . . . Reprogrammed . | . . . . . Reused . | . . . . . Traps Extracted . | . . . . . Installed . | . . . . . Triggered . | . . . . . Machines | -11 -10 -10 -10 -9 ---------- Run | Yrd Mat Min Exi Min Machines Disabled . | . . . . . Max in Single Turn . | . . . . . Machines Repaired . | . . . . . Machines Dismantled . | . . . . . Machines Sabotaged . | . . . . . Overloaded Fab Kills . | . . . . . Hacking | -11 -10 -10 -10 -9 --------- Run | Yrd Mat Min Exi Min Machines Accessed 2 | . 1 . 1 . Terminals 1 | . 1 . . . Fabricators . | . . . . . Repair Stations . | . . . . . Recycling Units . | . . . . . Scanalyzers . | . . . . . Garrison Access . | . . . . . Total Hacks 26 | . 3 . 23 . Successful 26 | . 3 . 23 . Failed . | . . . . . Catastrophic . | . . . . . Database Lockouts . | . . . . . Manual . | . . . . . Terminals 3 | . 3 . . . Fabricators . | . . . . . Repair Stations . | . . . . . Recycling Units . | . . . . . Scanalyzers . | . . . . . Garrison Access . | . . . . . Terminal Hacks 26 | . 3 . 23 . Record 25 | . 2 . 23 . Alert Level 1 | . 1 . . . Fabricator Hacks . | . . . . . Repair Station Hacks . | . . . . . Recycling Unit Hacks . | . . . . . Scanalyzer . | . . . . . Garrison Access Hacks . | . . . . . Unauthorized Hacks . | . . . . . Terminals . | . . . . . Fabricators . | . . . . . Repair Stations . | . . . . . Recycling Units . | . . . . . Scanalyzers . | . . . . . Garrison Access . | . . . . . Data Cores Recovered . | . . . . . Used . | . . . . . Hacking Detections 1 | . 1 . . . Full Trace Events 1 | . 1 . . . Feedback Events . | . . . . . Feedback Blocked . | . . . . . Robot Schematics Acquired . | . . . . . Robots Built . | . . . . . Authchips . | . . . . . Time . | . . . . . Total Robot Build Rating . | . . . . . Part Schematics Acquired . | . . . . . Parts Built . | . . . . . Authchips . | . . . . . Time . | . . . . . Total Part Build Rating . | . . . . . Parts Repaired . | . . . . . Time . | . . . . . Parts Recycled . | . . . . . Recycled Matter . | . . . . . Retrieved Matter . | . . . . . Retrieved Components . | . . . . . Parts Scanalyzed . | . . . . . Part Schematics Acquired . | . . . . . Parts Damaged . | . . . . . Bothacking | -11 -10 -10 -10 -9 ------------ Run | Yrd Mat Min Exi Min Used RIF Installer . | . . . . . Robots Hacked . | . . . . . Non-combat . | . . . . . Combat . | . . . . . Robot Hacks Applied . | . . . . . Relay Couplers Released . | . . . . . Fabnet Peak Effective % . | . . . . . Robots Rewired . | . . . . . Allies Hacked . | . . . . . Hacks Repelled . | . . . . . Allies | -11 -10 -10 -10 -9 -------- Run | Yrd Mat Min Exi Min Total Allies . | . . . . . Largest Group . | . . . . . Highest-Rated Group . | . . . . . Highest-Rated Ally . | . . . . . Total Orders . | . . . . . Ally Attacks . | . . . . . Total Damage . | . . . . . Kills . | . . . . . Allies Corrupted . | . . . . . Allies Melted . | . . . . . Intel | -11 -10 -10 -10 -9 ------- Run | Yrd Mat Min Exi Min Robot Analysis Total . | . . . . . Derelict Logs Recovered 1 | . . 1 . . Drone Launches . | . . . . . Drone Recoveries . | . . . . . Exploration | -11 -10 -10 -10 -9 ------------- Run | Yrd Mat Min Exi Min Turns Passed 1512 | 37 363 420 680 12 Spaces Moved 1149 | 30 251 305 560 3 Core 3 | 3 . . . . Treads . | . . . . . Legs 951 | . 83 305 560 3 Wheels 195 | 27 168 . . . Hover . | . . . . . Flight . | . . . . . Fastest Speed 50 | 50 90 120 120 120 Average Speed 114 | 86 100 120 120 120 Slowest Speed 120 | 90 120 120 120 120 Overloaded Moves . | . . . . . Propulsion Burnouts . | . . . . . Robots Hopped . | . . . . . Cave-ins Triggered . | . . . . . Exploration Rate (%) 39 | 3 44 64 79 8 Regions Visited 4 Branch Regions 3 Pre-discovered Areas 2 | . . 1 1 . Known Exits Taken 1 | . . . 1 . Unknown Exits Taken 3 | 1 1 1 . . Scrap Searched 1 | . . 1 . . Spaces Dug . | . . . . . Terrain Destroyed 14 | . 14 . . . Melee . | . . . . . Projectile . | . . . . . AOE 14 | . 14 . . . Terrain Rammed . | . . . . . Walls Destroyed . | . . . . . Machines Disabled . | . . . . . Actions | -11 -10 -10 -10 -9 --------- Run | Yrd Mat Min Exi Min Total 1256 | 41 308 333 568 6 Wait . | . . . . . Move 1145 | 29 250 304 559 3 Hop . | . . . . . Pick Up 23 | 6 9 5 3 . Fast Attach . | . . . . . Attach 11 | 6 4 1 . . Detach 1 | . 1 . . . Swap 15 | . 8 4 3 . Drop 13 | . 6 4 3 . Fire 46 | . 29 14 . 3 Melee . | . . . . . Ram 1 | . 1 . . . Kick 1 | . . 1 . . Crush . | . . . . . Escape Stasis . | . . . . . Rewire . | . . . . . Trap . | . . . . . Miscellaneous . | . . . . . Route ------- -11/Scrapyard -10/Materials (discovered 2 exits: [*Mat] / [*Min]) -10/Mines (discovered 2 exits: [*Mat] / *Exi) -10/Exiles (discovered 2 exits: *Min x2) -9/Mines History --------- Turn | Location | Event 19 | -11/Scrapyard | Discovered new exit (range 15) 38 | -11/Scrapyard | Entered Materials 155 | -10/Materials | Discovered new exit (range 11) 304 | -10/Materials | Build established: Mutant 379 | -10/Materials | Discovered new exit (range 12) 401 | -10/Materials | Entered Mines 402 | -10/Mines | Met a Derelict bent on vengeance 477 | -10/Mines | Learned location of Storage (-8) 481 | -10/Mines | Discovered new exit (range 5) 815 | -10/Mines | Deemed a non-threat by the Exiles lab entrance 815 | -10/Mines | Discovered new exit (range 5) 821 | -10/Mines | Entered Exiles 822 | -10/Exiles | Identified exit to Mines 877 | -10/Exiles | Met 8R-AWN 904 | -10/Exiles | Met EX-HEX 950 | -10/Exiles | Met EX-DEC 979 | -10/Exiles | Build established: Scavenger-Mutant 1060 | -10/Exiles | Learned location of Zion (-7) 1125 | -10/Exiles | Visited The Gauntlet 1501 | -10/Exiles | Entered Mines 1502 | -9/Mines | Assembled infested the area 1507 | -9/Mines | Assisted by a Guerilla fighting off Assembled 1508 | -9/Mines | Core integrity fell below 50% 1513 | -9/Mines | Core integrity fell below 20% 1513 | -9/Mines | Destroyed by as-69835 with Assembled F-torch Last Messages --------------- 01505_ Ion Engine destroyed. 01506_ as-37333 destroyed. 01507_ A derelict emerges from the shadows: "You need to get out of here! I've been tracking a group of Assembled to figure out where they're coming from, and they're closing on this area, come on!" 01508_ L9-KNT(h) knocked back. 01508_ as-27465 destroyed. 01509_ as-58869 destroyed. 01510_ Aluminum Leg destroyed. 01510_ Critical hit (Burn: +80). 01510_ as-18883 suffers critical hit (Destroy). 01510_ as-18883 destroyed. 01511_ Aluminum Leg destroyed. 01512_ Lgt. Assault Rifle destroyed. 01512_ System corrupted by crushing effect (+1). 01512_ as-93729 destroyed. 01512_ HV Slug penetrates as-74106. 01512_ as-74106 suffers critical hit (Destroy). Map ----- +----------------------------------------------------+ | | | | | | | | | | | | | | | | | | | | | | | | | | | | | | | | | ????????????????????????????????????????? | | ????????????????????????????????????????? | | ????????????????????????????????????????? | | ????????????????????????????????????????? | | ????????????????????????????????????????? | | ????????????????????????????????????????? | | ????????????????????????##############??? | | ????????????????????????#h % #??? | | ????????????????????????# a #??? | | ????????????????????????#@a% #??? | | ????????????????????# a%a #??? | | ????????????????????# a##% a%a #??? | | ?????????????????? ??# a !! #??? | | ????????????????# ###???#aaa!!% #??? | | ????????????????????????#aa !! #??? | | ???????????????????????? ! #??? | | ???????????????????????? #??? | | ??????????????????????? #??? | | ???????????????????????" a #??? | | ?????????????????????? # #??? | | ??????????????????????### #??? | | ????????????????????????# ???? | | ????????????????????????###########?????? | | ????????????????????????????????????????? | | ????????????????????????????????????????? | | ????????????????????????????????????????? | | ????????????????????????????????????????? | | ????????????????????????????????????????? | | ????????????????????????????????????????? | | ????????????????????????????????????????? | | ????????????????????????????????????????? | | ????????????????????????????????????????? | | ????????????????????????????????????????? | | ????????????????????????????????????????? | +----------------------------------------------------+ Best States ------------- Heat Dissipation 25 Energy Generation 14 Energy Capacity 250 Matter Stores 400 Matter Capacity 400 Sight Range 16 Terrain Scan Density 10 Evasion (%) 55 Item Schematics ----------------- None Robot Schematics ------------------ None Fabricated ------------ Nothing Alien Tech Used ----------------- None Achievements -------------- Hunted Challenges ------------ None Game ------ Seed LobotomyArmoredCorpse Manual? 0 Play Time 00:12:34 Cumulative 2.6 hours Start 2024.04.26 @ 07:55:10 End 2024.04.26 @ 08:07:59 Sessions 1 Manual Loads 0 Difficulty Rogue Special Mode None Game No. 6 Rogue 3 Adventurer 3 Explorer 0 Win Type - Total 0 Types 0/0/0/0/0/0/0/0/0 Lore% 8 Gallery% 9 Achievement% 10 Wizard Run 0 Options --------- Layout 1 ASCII 0 Keyboard 0 Movement Mouse Keybinds 0 Fullscreen 1 Font 24/Smallcaps Map View 50x35 Zoom Use 0% Tactical HUD 1 Map Filters NONE Filters NONE Steam 0 RUN: 7e793d28-0716-4765-bba3-1701e3f10519